bitfinex/quotes_ETHUSD_20220305
["timestamp","ask_amount","ask_price","bid_price","bid_amount"]
[1646500740780,1.89976137,2669.7,2668.6,1.18147481]
[1646500741013,1.5357905,2669.6,2668.6,1.18147481]
[1646500741205,1.9112905,2669.6,2668.6,1.1781]
[1646500741405,1.89976137,2669.7,2668.7,1.14841489]
[1646500741606,1.53578415,2669.6,2668.7,1.14841489]
[1646500743306,1.53578415,2669.6,2668.6,1.18125405]
[1646500743307,1.91128415,2669.6,2668.6,1.18125405]
[1646500743508,0.3755,2669.4,2668.6,1.1781]
[1646500743711,5.41140612,2669.3,2668.2,0.25]
[1646500743910,5.41140612,2669.3,2668.6,0.00315405]
[1646500743911,1.53594316,2669.2,2668.6,0.00315405]
[1646500744411,0.3755,2669.1,2668.6,0.00315405]
[1646500744850,0.3755,2669.1,2668.2,0.25]
[1646500744851,0.95411121,2668.7,2668.2,0.25]
[1646500745053,0.95411121,2668.7,2668.6,0.00316923]
[1646500745254,0.3755,2668.9,2668.6,0.00316923]
[1646500746053,0.3755,2669.0,2667.8,0.90264053]
[1646500746254,1.00589186,2668.7,2668.6,0.00319203]
[1646500746454,1.0,2669.1,2668.6,0.00319203]
[1646500746455,4.5,2669.1,2668.6,0.00319203]
[1646500746654,1.53609413,2669.0,2668.6,0.00319203]
[1646500747057,1.91159413,2669.0,2668.6,0.00319203]
[1646500747256,0.3755,2668.8,2668.0,0.93717]
[1646500747456,0.90651652,2668.8,2668.6,0.00319205]
[1646500747859,4.5,2669.1,2668.6,0.00319205]
[1646500748055,1.2079,2669.2,2668.6,0.00319205]
[1646500748256,1.53602556,2669.1,2668.6,0.00319205]
[1646500748512,1.2079,2669.2,2668.4,0.93702]
[1646500748706,1.2079,2669.2,2668.2,1.87401]
[1646500748707,1.2079,2669.2,2668.6,0.0031895]
[1646500748906,1.2079,2669.2,2668.6,1.12602024]
[1646500749107,7.5851,2669.4,2668.6,1.12602024]
[1646500749306,0.89842728,2669.5,2668.6,1.12602024]
[1646500749508,0.89842728,2669.5,2668.3,2.10444053]
[1646500749509,1.53581626,2669.4,2668.3,2.10444053]
[1646500749908,1.53581626,2669.4,2668.6,0.00318675]
[1646500750208,0.3755,2669.3,2668.6,0.00318675]
[1646500750413,1.53581626,2669.2,2668.6,0.00318675]
[1646500750809,1.53581626,2669.2,2668.4,0.95181601]
[1646500751008,1.91131626,2669.2,2668.4,0.95181601]
[1646500751208,1.53581626,2669.1,2668.6,0.00318672]
[1646500751408,0.1872,2669.4,2668.6,0.00318672]
[1646500751610,1.53598479,2669.3,2668.6,0.00318672]
[1646500752010,1.53598479,2669.3,2668.4,0.95181601]
[1646500752252,1.53598479,2669.3,2668.6,0.00318709]
[1646500752452,0.3755,2669.2,2668.6,0.00318709]
[1646500752654,1.53598479,2669.1,2668.6,0.00318709]
[1646500752854,1.53598479,2669.0,2668.6,0.00318709]
[1646500753056,0.3755,2669.2,2668.6,0.00318709]
[1646500753254,0.3755,2669.2,2668.1,0.90264053]
[1646500753454,0.3755,2669.2,2668.6,0.00318741]
[1646500753660,3.5,2669.1,2668.6,0.00318741]
[1646500753861,0.8305,2669.0,2668.6,0.00318741]
[1646500754058,3.0,2668.7,2668.6,0.00318741]
[1646500754257,3.0,2668.7,2667.8,0.25]
[1646500754258,0.00405987,2668.5,2667.8,0.25]
[1646500754458,0.3755,2668.2,2667.6,1.0]
[1646500754660,3.0,2668.3,2667.6,1.0]
[1646500754661,0.3755,2668.0,2667.6,1.0]
[1646500754858,3.8755,2667.9,2667.6,0.0001]
[1646500755066,3.8755,2667.9,2667.4,0.0066086]
[1646500755067,0.8305,2667.8,2667.4,0.0066086]
[1646500755260,0.82101707,2667.8,2667.4,0.0066086]
[1646500755862,1.22679205,2667.5,2667.4,0.0066086]
[1646500756137,1.75903707,2667.8,2667.4,0.0066086]
[1646500756138,0.3755,2667.8,2667.4,0.0066086]
[1646500756638,1.0,2667.9,2667.4,0.0066086]
[1646500757037,3.8353,2668.1,2667.4,0.0066086]
[1646500757436,2.8353,2668.1,2667.4,0.0066086]
[1646500757637,1.48491027,2668.5,2667.4,0.00879726]
[1646500758039,0.3755,2668.4,2667.4,0.00879726]
[1646500758438,1.34114976,2668.4,2667.6,0.00351751]
[1646500758843,4.84114976,2668.4,2667.6,0.00351751]
[1646500759048,0.1874,2668.3,2667.6,0.00351751]
[1646500759243,0.1874,2668.3,2667.4,0.00879726]
[1646500759443,0.1874,2668.3,2667.9,0.00351731]
[1646500760462,0.1874,2668.3,2667.4,0.0066086]
[1646500760663,0.1874,2668.3,2668.0,0.00337771]
[1646500761363,5.84114976,2668.4,2668.0,0.00337771]
[1646500761563,5.84114976,2668.4,2667.4,0.0066086]
[1646500761863,5.84114976,2668.4,2668.0,0.00337767]
[1646500762666,6.84114976,2668.4,2668.0,0.00337767]
[1646500762865,0.1872,2668.3,2667.4,0.0066086]
[1646500763066,1.23415947,2667.5,2667.4,0.0066086]
[1646500763715,4.73415947,2667.5,2667.4,0.0066086]
[1646500763915,5.72355947,2667.5,2667.4,0.0066086]
[1646500764115,2.22355947,2667.5,2667.4,0.0066086]
[1646500764315,5.72355947,2667.5,2667.4,0.0066086]
[1646500764719,6.72355947,2667.5,2667.4,0.0066086]
[1646500765917,7.72355947,2667.5,2667.4,0.0066086]
[1646500766117,8.17855947,2667.5,2667.4,0.0066086]
[1646500768265,2.4444,2667.5,2667.4,0.0066086]
[1646500768563,1.0,2667.5,2667.4,0.0066086]
[1646500768765,1.48116898,2667.6,2667.4,0.0066086]
[1646500768963,1.48116898,2667.6,2667.4,0.03532991]
[1646500769162,0.1874,2667.5,2667.4,0.03532991]
[1646500770162,3.5,2667.5,2667.4,0.03532991]
[1646500770371,1.0,2667.5,2667.4,0.03532991]
[1646500770764,0.1874,2667.5,2667.4,0.03532991]
[1646500772416,3.6874,2667.5,2667.4,0.03532991]
[1646500772616,0.1874,2667.5,2667.4,0.03532991]
[1646500772916,4.6874,2667.5,2667.4,0.03532991]
[1646500773117,0.1874,2667.5,2667.4,0.03532991]
[1646500773363,1.1874,2667.5,2667.4,0.03532991]
[1646500773515,0.1874,2667.5,2667.4,0.03532991]
[1646500774119,0.1874,2667.5,2667.4,0.02088959]
[1646500774320,0.0303708,2667.3,2667.2,0.01444032]
[1646500774518,0.92908961,2667.3,2667.2,0.01444032]
[1646500777663,0.0303708,2667.3,2667.2,0.01444032]
[1646500779315,0.0303708,2667.3,2667.2,0.03142836]
[1646500783161,4.5,2667.2,2666.9,0.08433842]
[1646500783363,4.5,2667.2,2666.6,0.00218866]
[1646500783364,3.8755,2667.1,2666.6,0.00218866]
[1646500783566,3.8755,2667.1,2666.0,1.1557]
[1646500783567,0.3755,2666.9,2666.2,0.00218866]
[1646500783766,0.3755,2666.7,2666.1,0.25]
[1646500783967,0.3755,2666.7,2666.1,0.00218866]
[1646500783968,0.8305,2666.7,2666.1,0.00218866]
[1646500784165,0.8305,2666.7,2665.9,0.37678866]
[1646500784369,0.8305,2666.7,2665.9,0.00218866]
[1646500784370,0.94974841,2666.4,2665.9,0.00218866]
[1646500784568,2.80674322,2666.4,2665.6,0.00218866]
[1646500784768,3.80674322,2666.4,2665.6,0.00218866]
[1646500785369,3.43124322,2666.4,2665.6,0.00218866]
[1646500786035,3.43124322,2666.4,2665.9,0.00327588]
[1646500786421,3.80674322,2666.4,2665.9,0.00327588]
[1646500786624,2.80674322,2666.4,2665.9,0.00327588]
[1646500786822,3.80674322,2666.4,2665.6,0.00218866]
[1646500787024,0.1875,2666.3,2666.0,0.00327577]
[1646500788022,0.563,2666.3,2665.6,0.00218866]
[1646500788223,0.1875,2666.3,2666.0,0.00327577]
[1646500788827,2.66899481,2666.4,2666.0,0.00327577]
[1646500789027,1.66899481,2666.4,2666.0,0.00327577]
[1646500789227,2.66899481,2666.4,2665.6,0.00218866]
[1646500789426,1.68776088,2666.4,2666.1,0.00327982]
[1646500789629,1.15495332,2666.3,2666.1,0.00327982]
[1646500789865,3.5,2666.2,2666.1,0.00327982]
[1646500790363,0.3755,2666.1,2665.6,0.00218866]
[1646500790569,0.3755,2666.1,2665.4,0.25]
[1646500790570,4.8935765,2666.0,2665.4,0.25218866]
[1646500790768,4.8935765,2666.0,2665.4,0.00218866]
[1646500790769,1.17032611,2665.9,2665.4,0.00218866]
[1646500790970,1.17032611,2665.9,2665.3,7.37]
[1646500791570,1.54582611,2665.9,2665.1,0.00218866]
[1646500791771,1.54582611,2665.9,2665.5,0.00328026]
[1646500792769,1.54582611,2665.9,2665.1,0.00218866]
[1646500793071,1.54582611,2665.9,2665.6,0.00316034]
[1646500793739,3.3935765,2666.0,2665.6,0.00316034]
[1646500793940,3.3935765,2666.0,2665.1,0.00218866]
[1646500793941,3.7690765,2666.0,2665.1,0.00218866]
[1646500794139,2.7690765,2666.0,2665.1,0.00218866]
[1646500794341,3.7690765,2666.0,2665.1,0.00218866]
[1646500794538,0.3755,2665.9,2665.6,0.00316031]
[1646500794745,0.455,2665.9,2665.6,0.00316031]
[1646500794943,0.8305,2665.9,2665.6,0.00316031]
[1646500795144,0.8305,2665.9,2664.8,0.00218866]
[1646500795542,1.10544225,2665.8,2665.6,0.00316031]
[1646500795743,0.3755,2665.9,2665.6,0.00316031]
[1646500796445,0.563,2665.9,2665.1,0.00218866]
[1646500796849,1.17471496,2665.7,2665.6,0.00316998]
[1646500797265,5.063,2665.9,2665.6,0.00316998]
[1646500797665,5.063,2665.9,2664.8,0.00218866]
[1646500797862,5.063,2665.9,2665.5,0.00317005]
[1646500798062,1.563,2665.9,2665.5,0.00317005]
[1646500798263,0.563,2665.9,2665.5,0.00317005]
[1646500798766,0.563,2665.9,2664.8,0.00218866]
[1646500799167,0.563,2665.9,2665.6,0.00317002]
[1646500799369,0.58423271,2665.9,2665.6,0.00317002]
[1646500799771,0.39673271,2665.9,2665.6,0.00317002]
[1646500799969,0.39673271,2665.9,2665.2,1.04572108]
[1646500800171,3.89673271,2665.9,2665.2,1.04790974]
[1646500800371,3.89673271,2665.9,2665.6,0.00316874]
[1646500800570,4.89673271,2665.9,2665.6,0.00316874]
[1646500801116,1.39673271,2665.9,2664.8,0.00218866]
[1646500801317,3.89673271,2665.9,2665.1,0.94277274]
[1646500801516,0.39673271,2665.9,2665.6,0.00316874]
[1646500801717,1.39673271,2665.9,2665.6,0.00316874]
[1646500801919,4.89673271,2665.9,2665.6,0.00316874]
[1646500802119,3.89673271,2665.9,2665.6,0.00316874]
[1646500802421,4.89673271,2665.9,2665.2,0.00218866]
[1646500802617,1.0,2665.8,2665.6,0.00316874]
[1646500803419,0.02123271,2665.9,2665.6,0.00316874]
[1646500803624,0.02123271,2665.9,2665.2,0.00218866]
[1646500803823,4.03423271,2666.1,2665.6,0.00316894]
[1646500804023,0.53423271,2666.1,2665.6,0.00316894]
[1646500804223,1.53423271,2666.1,2665.6,0.00316894]
[1646500804423,0.02172784,2665.8,2665.6,0.00316894]
[1646500804635,0.02172784,2665.8,2665.6,0.9381988]
[1646500804869,0.02172784,2665.8,2665.6,0.93502986]
[1646500805270,0.02172784,2665.8,2665.6,0.00316894]
[1646500805967,0.02172784,2665.8,2665.3,0.00218866]
[1646500806169,0.02172784,2665.8,2665.4,1.19119288]
[1646500806468,0.02172784,2665.8,2665.6,0.00316894]
[1646500806669,0.02172784,2665.8,2665.6,0.00648512]
[1646500807270,0.02172784,2665.8,2665.6,0.00331618]
[1646500807471,0.02172784,2665.8,2665.6,0.0064851]
[1646500808516,0.02172784,2665.8,2665.6,0.00331618]
[1646500808719,0.02172784,2665.8,2665.6,0.0064851]
[1646500809319,0.563,2666.2,2665.7,0.03809483]
[1646500809721,0.563,2666.2,2665.7,0.02771665]
[1646500811119,0.563,2666.2,2665.8,0.00186796]
[1646500811519,0.1875,2666.2,2665.8,0.00186796]
[1646500811920,0.1875,2666.2,2665.7,0.02771665]
[1646500812120,3.63089481,2666.4,2665.7,0.02771665]
[1646500812121,0.1875,2666.3,2665.7,0.02771665]
[1646500812368,0.1875,2666.3,2665.9,0.00186793]
[1646500813168,0.1875,2666.3,2665.7,0.02771665]
[1646500813369,0.1875,2666.3,2666.0,0.00186786]
[1646500813573,0.1875,2666.3,2665.7,0.02771665]
[1646500813574,0.00271368,2665.9,2665.7,0.02771665]
[1646500813978,0.00271368,2665.9,2665.6,0.00331618]
[1646500818320,0.00271368,2665.9,2665.6,0.00692602]
[1646500819326,0.00271368,2665.9,2665.6,0.00331618]
[1646500819525,0.00271368,2665.9,2665.6,0.00692602]
[1646500820370,0.88570865,2665.9,2665.6,0.00331618]
[1646500820572,0.00271368,2665.9,2665.6,0.00331618]
[1646500820775,0.00271368,2665.9,2665.6,0.00692602]
[1646500821573,0.00271368,2665.9,2665.6,0.00331618]
[1646500821774,0.00271368,2665.9,2665.6,1.1968579]
[1646500821973,0.00271368,2665.9,2665.6,1.19893856]
[1646500822776,0.00271368,2665.9,2665.6,1.1968579]
[1646500823279,0.00271368,2665.9,2665.6,0.00681519]
[1646500824120,0.00271368,2665.9,2665.6,0.00331618]
[1646500824326,0.00271368,2665.9,2665.6,0.00668902]
[1646500825322,0.00271368,2665.9,2665.6,0.00331618]
[1646500825523,0.00271368,2665.9,2665.6,0.00668902]
[1646500825722,1.54046286,2665.9,2665.6,0.00668902]
[1646500826523,1.54046286,2665.9,2665.6,0.00331618]
[1646500826724,1.54046286,2665.9,2665.6,0.00655447]
[1646500827372,1.53774918,2665.8,2665.6,0.00655447]
[1646500827574,0.00271368,2665.9,2665.6,0.00655447]
[1646500827774,0.00271368,2665.9,2665.6,0.00331618]
[1646500827975,0.00271368,2665.9,2665.6,0.00668064]
[1646500828775,0.00271368,2665.9,2665.6,0.00331618]
[1646500829275,0.00271368,2665.9,2665.6,0.00668064]
[1646500830079,0.00271368,2665.9,2665.6,0.00331618]
[1646500830279,0.00271368,2665.9,2665.6,0.00668547]
[1646500830679,1.54046286,2665.9,2665.7,1.1851208]
[1646500830881,2.48149481,2666.4,2665.7,1.1851208]
[1646500831120,2.48149481,2666.4,2665.7,1.18730946]
[1646500831515,1.48149481,2666.4,2665.9,0.00336908]
[1646500831917,4.98149481,2666.4,2665.9,0.00336908]
[1646500832318,5.98149481,2666.4,2665.9,0.00336908]
[1646500832516,5.98149481,2666.4,2665.6,0.00331618]
[1646500832517,2.48149481,2666.4,2665.6,0.00331618]
[1646500832718,2.48149481,2666.4,2666.0,0.00336901]
[1646500832719,1.48149481,2666.4,2666.0,0.00336901]
[1646500833118,2.1673406,2666.4,2666.0,0.00336901]
[1646500833319,0.68584579,2666.3,2666.0,0.00336901]
[1646500833522,0.87334579,2666.2,2666.0,0.00336901]
[1646500833726,0.00825968,2665.8,2665.6,0.00331618]
[1646500835164,0.00825968,2665.8,2665.6,0.00668517]
[1646500836067,0.00825968,2665.8,2665.6,0.00331618]
[1646500836466,0.00825968,2665.8,2665.6,0.00668517]
[1646500837269,0.00825968,2665.8,2665.6,0.00331618]
[1646500837468,0.00825968,2665.8,2665.6,0.0066852]
[1646500838725,0.00825968,2665.8,2665.6,0.98359619]
[1646500839727,0.00825968,2665.8,2665.6,0.92631753]
[1646500839926,0.00825968,2665.8,2665.6,0.92968655]
[1646500840126,0.00825968,2665.8,2665.6,0.00336902]
[1646500840928,0.00825968,2665.8,2665.4,0.00218866]
[1646500841129,0.00825968,2665.8,2665.6,0.00336902]
[1646500842127,0.00825968,2665.8,2665.4,1.20826914]
[1646500842367,0.00825968,2665.8,2665.6,0.00336902]
[1646500843369,0.00825968,2665.8,2665.5,0.93954517]
[1646500843573,0.00825968,2665.8,2665.6,0.00336902]
[1646500844572,0.00825968,2665.8,2665.5,0.93954517]
[1646500844773,0.00825968,2665.8,2665.6,0.00336902]
[1646500845775,0.00825968,2665.8,2665.3,0.00218866]
[1646500846018,0.00825968,2665.8,2665.6,0.00336902]
[1646500848223,0.00825968,2665.8,2665.3,0.00218866]
[1646500848424,0.00825968,2665.8,2665.6,0.00336902]
[1646500849223,0.00825968,2665.8,2665.3,0.00218866]
[1646500849427,0.00825968,2665.8,2665.2,2.14108987]
[1646500849624,0.00825968,2665.8,2665.6,0.00325637]
[1646500850471,0.00825968,2665.8,2665.3,0.00218866]
[1646500850673,0.00825968,2665.8,2665.6,0.00325637]
[1646500851678,0.00825968,2665.8,2665.3,0.00218866]
[1646500851877,1.53768691,2665.7,2665.6,0.00326402]
[1646500852676,1.53768691,2665.7,2665.6,1.02169612]
[1646500852877,0.00825968,2665.8,2665.6,1.0184321]
[1646500853720,0.00825968,2665.8,2665.5,0.00328002]
[1646500854121,0.00825968,2665.8,2665.4,0.3755]
[1646500854322,0.00825968,2665.8,2665.5,0.00328002]
[1646500855324,0.00825968,2665.8,2665.3,1.23168866]
[1646500855524,0.00825968,2665.8,2665.5,0.00327831]
[1646500856525,0.00825968,2665.8,2665.4,0.3755]
[1646500856725,0.00825968,2665.8,2665.5,0.00315866]
[1646500857667,0.00825968,2665.8,2665.3,1.23168866]
[1646500858067,0.00825968,2665.8,2665.5,0.00315866]
[1646500858872,0.00825968,2665.8,2665.3,1.60718866]
[1646500859273,0.00825968,2665.8,2665.6,1.15838153]
[1646500860274,0.00825968,2665.8,2665.6,1.16156137]
[1646500860676,0.00825968,2665.8,2665.6,0.00317984]
[1646500861317,0.00825968,2665.8,2665.3,1.60718866]
[1646500861518,0.00825968,2665.8,2665.3,1.605]
[1646500861716,0.00730368,2665.8,2665.6,0.00317984]
[1646500861915,1.14242483,2666.1,2665.6,0.00317984]
[1646500861916,1.05882651,2666.1,2665.6,0.00317984]
[1646500862116,1.53765636,2666.0,2665.6,0.00317984]
[1646500862520,1.53765636,2666.0,2665.3,1.23168866]
[1646500862715,1.53765636,2666.0,2665.7,0.00317832]
[1646500863720,1.53765636,2666.0,2665.3,1.23168866]
[1646500864123,1.53765636,2666.0,2665.7,0.00317672]
[1646500864977,1.53765636,2666.0,2665.3,1.23168866]
[1646500865180,1.53765636,2666.0,2665.7,0.00317672]
[1646500865880,5.03765636,2666.0,2665.7,0.00317672]
[1646500866077,1.53765636,2665.9,2665.3,1.23168866]
[1646500866277,1.53765636,2665.8,2665.1,0.00218866]
[1646500866480,1.53765636,2665.9,2665.7,0.00317692]
[1646500866780,1.53775829,2665.8,2665.7,0.00317692]
[1646500866979,1.53775829,2665.9,2665.7,0.00317692]
[1646500867278,3.5,2665.8,2665.7,0.00317692]
[1646500867478,1.14574621,2665.4,2665.1,0.00218866]
[1646500867682,2.62762413,2665.4,2664.9,0.1875]
[1646500868721,1.48187792,2665.4,2665.0,0.00317761]
[1646500869424,3.8755,2665.9,2665.0,0.00317761]
[1646500869622,1.91331803,2665.8,2665.0,0.00536627]
[1646500869822,2.47751433,2665.7,2665.0,0.00218866]
[1646500870024,1.53781803,2665.6,2665.1,0.00317993]
[1646500870524,4.00361354,2666.0,2665.1,0.00317993]
[1646500870724,1.53779467,2665.9,2665.1,0.00536859]
[1646500870924,1.53779467,2665.9,2665.1,0.00218866]
[1646500871324,1.53779467,2665.9,2665.4,0.00317967]
[1646500871725,1.53779467,2665.9,2665.4,0.94129967]
[1646500872130,1.53779467,2665.9,2665.4,0.93812]
[1646500872374,1.53779467,2665.9,2665.5,0.0031796]
[1646500872777,1.53779467,2665.9,2665.5,1.05010063]
[1646500873376,1.53779467,2665.9,2665.5,1.04692103]
[1646500873575,1.53779467,2665.9,2665.6,0.00317703]
[1646500874676,6.35027602,2666.5,2665.7,2.5]
[1646500874983,0.1875,2666.7,2665.7,2.8755]
[1646500875179,0.1875,2667.0,2665.8,3.8305]
[1646500875385,3.9919413,2667.7,2665.8,3.8305]
[1646500875386,0.87334579,2667.4,2666.2,0.3755]
[1646500875581,0.68584579,2667.5,2666.3,0.8305]
[1646500875777,1.10262651,2667.7,2666.3,0.8305]
[1646500875778,0.1874,2667.7,2666.3,13.5266]
[1646500876032,0.1874,2667.8,2666.3,14.43663737]
[1646500876232,0.1874,2667.8,2667.1,1.22293487]
[1646500876633,0.150156,2667.9,2667.1,1.22293487]
[1646500876836,0.1874,2668.1,2667.1,1.22293487]
[1646500877433,0.1874,2668.2,2667.3,0.93743]
[1646500878839,0.1874,2668.2,2667.1,1.22293487]
[1646500880076,4.0629,2668.2,2666.9,0.03363448]
[1646500880272,1.0,2667.9,2666.9,0.03363448]
[1646500880575,0.1874,2667.8,2666.9,0.03363448]
[1646500880971,0.89954387,2667.6,2666.9,0.03363448]
[1646500881171,0.89954387,2667.6,2666.6,0.25]
[1646500881172,1.27504387,2667.6,2666.6,0.25]
[1646500881375,3.5,2667.5,2666.6,0.25]
[1646500881771,1.0,2667.5,2666.6,0.25]
[1646500881973,2.27504387,2667.6,2666.6,0.25]
[1646500882173,1.27504387,2667.6,2666.6,0.25]
[1646500882373,1.27504387,2667.6,2666.7,1.06817539]
[1646500884424,1.27504387,2667.6,2666.6,0.25]
[1646500884624,1.27504387,2667.6,2667.1,0.01491874]
[1646500884824,0.00584421,2667.0,2666.5,0.93773]
[1646500885424,0.00584421,2667.0,2666.7,0.93778458]
[1646500886424,0.00584421,2667.0,2666.5,0.93773]
[1646500887869,0.00584421,2667.0,2666.6,1.22467838]
[1646500889073,0.00584421,2667.0,2666.5,0.93773]
[1646500889275,0.00584421,2667.0,2666.3,1.87541]
[1646500889475,0.00584421,2667.0,2666.1,0.00316623]
[1646500889677,0.02752854,2667.0,2666.1,0.00316623]
[1646500890075,1.02129171,2666.4,2666.1,0.00316623]
[1646500890276,1.02129171,2666.4,2666.0,1.2176]
[1646500890575,1.02129171,2666.4,2665.5,4.01890809]
[1646500890777,1.02129171,2666.4,2666.1,0.00316611]
[1646500891420,3.5,2666.3,2665.3,0.00218866]
[1646500891623,3.8755,2666.3,2665.3,0.00218866]
[1646500891819,4.5,2666.3,2666.1,0.00316603]
[1646500892020,1.0,2666.3,2666.1,0.00316603]
[1646500892224,5.92339171,2666.4,2666.1,0.00316603]
[1646500892225,6.92339171,2666.4,2666.1,0.00316603]
[1646500892420,5.82209171,2666.4,2666.1,0.00316603]
[1646500892623,5.82209171,2666.4,2665.4,1.1932968]
[1646500892819,5.82209171,2666.4,2665.3,0.00218866]
[1646500892820,5.52129171,2666.4,2665.3,0.00218866]
[1646500893020,5.52129171,2666.4,2666.1,0.00316611]
[1646500893220,5.89679171,2666.4,2666.1,0.00316611]
[1646500893822,5.89679171,2666.4,2665.3,0.00218866]
[1646500894528,5.9184226,2666.4,2665.3,0.00218866]
[1646500894796,0.3755,2666.2,2665.3,0.00218866]
[1646500894975,3.8755,2666.2,2665.3,0.00218866]
[1646500895176,1.02620329,2665.9,2665.3,0.00218866]
[1646500895377,1.02620329,2665.9,2665.7,0.00316635]
[1646500895778,3.5,2665.8,2665.7,0.00316635]
[1646500896176,6.49300992,2665.8,2665.7,0.00316635]
[1646500896376,6.49300992,2665.8,2664.8,0.00218866]
[1646500896377,0.3755,2665.7,2664.8,0.00218866]
[1646500896575,1.28550846,2665.5,2664.8,0.00218866]
[1646500897675,1.28550846,2665.5,2664.7,2.95218866]
[1646500897876,1.28550846,2665.5,2665.0,0.00329051]
[1646500898723,1.28550846,2665.5,2664.8,0.00223394]
[1646500898921,1.28550846,2665.5,2665.1,0.00334826]
[1646500899521,0.563,2665.6,2665.1,0.00334826]
[1646500899922,0.563,2665.6,2664.8,0.00223394]
[1646500900123,0.563,2665.6,2665.2,0.00321617]
[1646500901127,0.563,2665.6,2664.8,0.00223394]
[1646500901325,1.62802629,2665.6,2665.3,0.00321613]
[1646500902027,0.1875,2665.6,2665.3,0.00321613]
[1646500902282,0.58463444,2665.9,2664.8,0.00223394]
[1646500902472,0.39713444,2665.9,2664.8,0.00223394]
[1646500902670,0.39713444,2665.9,2665.3,0.00315183]
[1646500903472,0.39713444,2665.9,2665.2,0.00223394]
[1646500903877,0.39713444,2665.9,2665.5,0.00315861]
[1646500904278,0.02168427,2665.6,2665.5,0.00315861]
[1646500904681,0.02168427,2665.6,2665.2,0.00223394]
[1646500904878,0.02168427,2665.6,2665.4,0.00315865]
[1646500905880,0.02168427,2665.6,2665.1,1.1921084]
[1646500906124,0.02168427,2665.6,2665.4,0.00316278]
[1646500907224,0.02168427,2665.6,2665.1,1.1921084]
[1646500907425,0.02168427,2665.6,2665.4,0.00316447]
[1646500908225,0.02168427,2665.6,2665.1,1.1921084]
[1646500908425,0.02168427,2665.6,2665.1,1.18987446]
[1646500908628,0.02168427,2665.6,2665.4,0.00316447]
[1646500909629,0.02168427,2665.6,2665.5,1.03950379]
[1646500910978,0.02168427,2665.6,2665.4,0.00316385]
[1646500911877,0.02168427,2665.6,2664.8,0.00223394]
[1646500912080,0.98152015,2665.5,2664.8,0.00223394]
[1646500912279,0.02168427,2665.6,2665.4,0.00316389]
[1646500913079,0.02168427,2665.6,2664.8,0.00223394]
[1646500913278,0.02168427,2665.6,2665.1,0.94933859]
[1646500913523,0.02168427,2665.6,2665.4,0.00316392]
[1646500914335,0.02168427,2665.6,2665.1,0.95157253]
[1646500914529,0.02168427,2665.6,2665.4,0.00316394]
[1646500915528,0.02168427,2665.6,2665.2,0.3755]
[1646500915930,0.02168427,2665.6,2665.4,0.00316394]
[1646500916733,0.02168427,2665.6,2664.9,0.00223394]
[1646500917131,0.02168427,2665.6,2665.4,0.00316394]
[1646500917980,0.02168427,2665.6,2665.2,0.96640425]
[1646500918279,0.02168427,2665.6,2665.4,0.00316394]
[1646500919086,0.02018621,2665.6,2665.2,0.96640425]
[1646500919486,0.02018621,2665.6,2665.4,0.00316394]
[1646500920287,0.02018621,2665.6,2665.2,0.96640425]
[1646500920586,0.02018621,2665.6,2665.4,0.00316394]
[1646500921627,0.02018621,2665.6,2665.2,0.96640425]
[1646500921828,0.02018621,2665.6,2665.4,0.00316394]
[1646500922726,0.02018621,2665.6,2664.9,0.00223394]
[1646500923126,0.02018621,2665.6,2665.4,0.00316394]
[1646500924030,0.02018621,2665.6,2664.9,1.16956246]
[1646500924229,0.02018621,2665.6,2665.4,0.00316394]
[1646500925077,0.02018621,2665.6,2664.9,1.16956246]
[1646500925477,0.02018621,2665.6,2665.4,0.00316394]
[1646500926279,0.02018621,2665.6,2664.9,1.16956246]
[1646500926679,0.02018621,2665.6,2665.4,0.00316394]
[1646500927479,0.02018621,2665.6,2664.9,1.16956246]
[1646500927881,0.02018621,2665.6,2665.4,0.00316394]
[1646500928080,0.02018621,2665.6,2665.4,0.88990116]
[1646500928730,0.02018621,2665.6,2665.4,0.88673722]
[1646500929129,0.02018621,2665.6,2665.4,0.88990116]
[1646500929930,0.02018621,2665.6,2665.4,0.88673722]
[1646500930130,0.02018621,2665.6,2665.4,0.88990116]
[1646500930930,0.02018621,2665.6,2665.4,0.00316394]
[1646500931132,0.02018621,2665.6,2664.9,0.00223394]
[1646500931533,0.02018621,2665.6,2665.4,0.00316394]
[1646500932377,0.02018621,2665.6,2665.5,0.89078259]
[1646500932975,0.02018621,2665.6,2665.4,0.00316394]
[1646500933582,0.02018621,2665.6,2664.9,2.34343394]
[1646500933783,0.02018621,2665.6,2665.4,0.00316394]
[1646500934482,0.02018621,2665.6,2665.5,1.15178774]
[1646500934984,1.55802574,2665.6,2665.5,1.15178774]
[1646500936829,1.55802574,2665.6,2665.4,0.0031639]
[1646500937329,1.53783953,2665.5,2665.0,0.00223394]
[1646500937530,1.53783953,2665.5,2665.4,0.0031639]
[1646500938329,1.53783953,2665.5,2665.2,1.1654795]
[1646500938732,1.53783953,2665.5,2665.3,0.00316397]
[1646500939792,0.02018621,2665.6,2665.3,0.00316401]
[1646500939982,0.02018621,2665.6,2665.3,0.91320138]
[1646500940188,0.02018621,2665.6,2665.4,0.3755]
[1646500940581,0.02018621,2665.6,2665.5,0.19046141]
[1646500940988,0.02018621,2665.6,2665.5,1.10049878]
[1646500941185,0.02018621,2665.6,2665.5,0.19046141]
[1646500941983,0.02018621,2665.6,2665.4,1.28553737]
[1646500942184,0.02018621,2665.6,2665.4,1.28738639]
[1646500942383,0.02018621,2665.6,2665.4,1.31544902]
[1646500942787,0.01916899,2665.6,2665.4,1.31544902]
[1646500942986,0.01916899,2665.6,2665.4,2.4159478]
[1646500943186,0.01916899,2665.6,2665.4,2.41409878]
[1646500943386,0.01916899,2665.6,2665.4,2.41747211]
[1646500943630,0.01916899,2665.6,2665.4,2.87247211]
[1646500943830,0.01916899,2665.6,2665.4,3.87247211]
[1646500944430,0.01916899,2665.6,2665.4,3.86909878]
[1646500944631,0.01916899,2665.6,2665.4,3.87224624]
[1646500945631,0.01916899,2665.6,2665.5,11.8955]
[1646500945833,0.01916899,2665.6,2665.5,13.3505]
[1646500946033,0.01916899,2665.6,2665.5,14.5219]
[1646500946230,0.87919,2667.0,2665.5,14.5219]
[1646500946231,0.69169,2667.0,2665.5,14.5219]
[1646500946432,2.2292161,2667.0,2665.7,11.8955]
[1646500946731,2.2292161,2667.0,2665.7,12.3505]
[1646500946934,1.5375261,2666.9,2665.7,12.3505]
[1646500947135,1.5375261,2666.9,2666.1,0.00313985]
[1646500947381,1.02747251,2666.6,2665.9,0.3755]
[1646500947581,1.02747251,2666.6,2665.5,2.51283412]
[1646500947582,1.5375261,2666.5,2665.5,3.53921596]
[1646500947789,1.5375261,2666.5,2665.5,2.6264]
[1646500948182,1.5375261,2666.5,2665.5,2.53921596]
[1646500948381,1.5375261,2666.5,2665.5,3.53921596]